[Event "58th Akiba Rubinstein A 2022"]
[Site "Polanica-Zdroj"]
[Date "2022.08.21"]
[Round "9.1"]
[White "Koziorowicz, Michal"]
[Black "Skurniak, Szymon"]
[Result "1/2-1/2"]
[ECO "B51"]
[WhiteElo "2231"]
[BlackElo "2051"]
[Annotator "TA"]
[PlyCount "194"]
[EventDate "2022.08.13"]
[EventCountry "POL"]
[SourceTitle "playchess.com"]
[Source "ChessBase"]
[SourceQuality "1"]
[TimeControl "40/5400+30:1800+30"]

{[%evp 32,194,12,12,14,-16,10,19,77,62,83,0,62,63,63,58,58,58,93,96,141,137,120,121,91,0,0,-2,-8,-2,-4,-3,-4,-88,-35,-122,0,0,51,51,51,51,51,51,51,51,51,51,51,51,51,51,51,51,72,72,72,72,72,51,72,72,72,34,34,34,34,16,34,0,0,0,0,0,0,0,0,0,0,0,0,0,0,0,0,0,0,0,0,0,0,0,0,0,0,0,0,0,0,0,0,0,157,0,0,0,157,0,0,0,0,0,0,0,0,0,0,0,0,0,0,0,0,0,0,0,0,0,0,0,0,0,0,0,0,0,0,0,0,0,0,0,0,0,0,0,0,0,34,34,34,0,34,0,0,0,0,0,0,0,0,0,0,0,0]} 1. e4 {[%emt 0:00:01]} c5 {[%emt 0:00:07]} 2. Nf3 {[%emt 0:00:03]} d6 {[%emt 0:00:09]} 3. Bb5+ {[%emt 0:00:05]} Nd7 {[%emt 0:00:08]} 4. d4 {[%emt 0:00:08]} cxd4 {[%emt 0:00:06]} 5. Qxd4 {[%emt 0:00:04]} a6 {[%emt 0:00:09]} 6. Bxd7+ {[%emt 0:00:09]} Bxd7 {[%emt 0:00:01]} 7. Nc3 {[%emt 0:00:07]} e5 {[%emt 0:01:01]} 8. Qd3 {[%emt 0:00:04]} h6 {[%emt 0:00:23]} 9. Nd2 {[%emt 0:01:10]} Rc8 {[%emt 0:07:49]} 10. Nc4 {[%emt 0:04:13]} Be6 {[%emt 0:01:14]} 11. Ne3 {[%emt 0:00:07]} Nf6 {[%emt 0:00:25]} 12. O-O {[%emt 0:04:50]} Be7 {[%emt 0:02:40]} 13. a4 {[%emt 0:03:36]} Qc7 {[%emt 0:01:23]} 14. Rd1 {[%emt 0:07:39]} O-O {[%emt 0:04:27]} 15. Bd2 {[%emt 0:05:57]} Bc4 {[%emt 0:13:15]} 16. Nxc4 {[%emt 0:00:20]} Qxc4 {[%emt 0:00:01]} 17. Qf3 {[%emt 0:10:49]} b5 {[%emt 0:11:42]} 18. Rac1 {[%emt 0:21:13]} b4 {[%emt 0:20:19]} 19. b3 {[%emt 0:02:28]} Qd4 {[%emt 0:01:58]} (19... Qe6 $11 20. Nd5 Nxd5 21. exd5 Qg6) 20. Nd5 $1 $16 {[%emt 0:15:39]} Nxd5 {[%emt 0:00:10]} 21. exd5 {[%emt 0:00:05]} ({Better is} 21. Bxh6 $1 $16 Qb2 22. Qg4) 21... Qb6 {[%emt 0:11:52]} (21... f5 $11) 22. Qg4 $14 {[%emt 0:00:40]} f5 {[%emt 0:02:07]} 23. Qxb4 {[%emt 0:00:33]} Qxb4 {[%emt 0:01:11]} 24. Bxb4 {[%emt 0:00:02]} Bg5 {[%emt 0:00:01]} 25. Rb1 {[%emt 0:03:30]} (25. Bxd6 $6 Rfd8 26. Bxe5 (26. f4 $2 Bxf4 27. Bxe5 Bxc1 $19) 26... Bxc1 27. Rxc1 Rxd5 $11) 25... Rxc2 {[%emt 0:00:07]} 26. Bxd6 {[%emt 0:00:04]} Re8 {[%emt 0:00:21]} 27. b4 {[%emt 0:04:35]} e4 {[%emt 0:00:56]} 28. Bc5 {[%emt 0:04:20]} (28. b5 $1 $16 {[%cal Rb5b6] And now b6 would win.} e3 29. f4 (29. bxa6 e2 $16)) 28... e3 $1 $11 {[%emt 0:01:07]} 29. d6 {[%emt 0:01:04]} e2 {[%emt 0:01:56]} 30. Re1 {[%emt 0:00:07]} Bf6 {[%emt 0:02:27]} 31. Bb6 $1 {[%emt 0:00:54]} Rd2 {[%emt 0:05:33]} 32. b5 {[%emt 0:02:51]} (32. Be3 $11 {keeps the balance.} Ra2 33. Rbc1) 32... axb5 {[%emt 0:02:18]} (32... Rxd6 33. Be3 $14 (33. bxa6 $2 Bc3 $19)) (32... Bc3 $1 $17 33. Be3 Ra2) 33. axb5 {[%emt 0:00:01]} ({White should try} 33. Ba5 $1 $15 Rxd6 34. axb5) 33... Rxd6 {[%emt 0:02:17]} (33... Bc3 $1 $17 34. Be3 Rc2) 34. Be3 $11 {[%emt 0:00:21]} Rde6 {[%emt 0:02:25]} ({Black should play} 34... Rb8 $11) 35. b6 $14 {[%emt 0:00:57]} ({Wrong is} 35. Rxe2 $2 f4 36. b6 fxe3 $19) 35... f4 {[%emt 0:02:09]} 36. Bxf4 {[%emt 0:02:43]} Bc3 {[%emt 0:00:17]} 37. b7 {[%emt 0:00:18]} Bxe1 {[%emt 0:00:07]} 38. Rxe1 {[%emt 0:00:07]} Rb6 {[%emt 0:00:09]} 39. b8=Q {[%emt 0:00:06]} Rbxb8 {[%emt 0:00:04]} 40. Bxb8 {[%emt 0:00:00]} Rxb8 {[%emt 0:00:00]} 41. f3 {[%emt 0:00:06]} Kf7 {[%emt 0:01:43]} 42. Rxe2 {[%emt 0:00:10]} Rb5 {[%emt 0:00:21]} 43. Kf2 {[%emt 0:00:07]} Rh5 {[%emt 0:00:19]} 44. h3 {[%emt 0:03:06]} Ra5 {[%emt 0:01:48]} 45. Rb2 {[%emt 0:00:07]} Ra6 {[%emt 0:00:15]} 46. Rb7+ {[%emt 0:01:08]} Kf6 {[%emt 0:00:14]} 47. g4 Rc6 {[%emt 0:11:18]} 48. Kg3 {[%emt 0:03:36]} g5 {[%emt 0:03:36]} 49. h4 {[%emt 0:01:44]} Ra6 {[%emt 0:00:13]} 50. h5 {[%emt 0:00:37]} Ke5 {[%emt 0:01:09]} 51. Rf7 {[%emt 0:05:03]} Rf6 {[%emt 0:01:24]} 52. Ra7 {[%emt 0:00:12]} Ke6 {[%emt 0:00:34]} 53. Kf2 {[%emt 0:00:44]} Ke5 {[%emt 0:00:17]} 54. Ra5+ {[%emt 0:00:18]} Ke6 {[%emt 0:00:31]} 55. Ke3 {[%emt 0:01:24]} Ke7 {[%emt 0:04:21]} 56. Ra7+ {[%emt 0:07:00]} Kd6 {[%emt 0:01:16]} 57. Rb7 {[%emt 0:03:28]} Re6+ {[%emt 0:00:13]} 58. Kd4 {[%emt 0:00:41]} Rf6 {[%emt 0:00:46]} 59. Ke4 {[%emt 0:02:35]} Rf4+ {[%emt 0:00:21]} 60. Ke3 {[%emt 0:00:01]} Rf6 {[%emt 0:01:49]} 61. Ra7 {[%emt 0:00:50]} Ke6 {[%emt 0:00:19]} 62. Ra4 {[%emt 0:00:50]} Ke5 {[%emt 0:00:31]} 63. Re4+ {[%emt 0:00:05]} (63. f4+ $5 gxf4+ 64. Kf3 $14) 63... Kd6 {[%emt 0:00:31]} 64. Rd4+ {[%emt 0:00:37]} Ke7 {[%emt 0:00:23]} 65. Rd5 {[%emt 0:02:35]} Re6+ {[%emt 0:00:19]} 66. Kf2 {[%emt 0:00:32]} Rd6 $2 {[%emt 0:00:12] [#]} (66... Rf6 $11) 67. Rf5 $2 {[%emt 0:00:33]} ({White must play} 67. Rxd6 $1 $16 Kxd6 68. f4 gxf4 69. g5 (69. Kf3 Ke5 $11)) 67... Rf6 {[%emt 0:00:50]} 68. Rd5 {[%emt 0:01:53]} Rd6 $2 {[%emt 0:00:16] [#]} (68... Ke6 $11 69. Ra5 Kf7 70. Ra7+ Kg8) 69. Rc5 $2 {[%emt 0:01:46]} (69. Rxd6 $1 $16 Kxd6 70. f4 gxf4 71. g5 (71. Kf3 Ke5 $11)) 69... Rf6 $11 {[%emt 0:00:12]} 70. Rc7+ {[%emt 0:00:12]} Kd6 {[%emt 0:00:09]} 71. Rc8 {[%emt 0:00:56]} Kd7 {[%emt 0:00:13]} 72. Rh8 {[%emt 0:00:38]} Ke7 {[%emt 0:01:12]} 73. Rh7+ {[%emt 0:01:04]} Kd6 {[%emt 0:01:28]} 74. Ke3 {[%emt 0:01:01]} Re6+ {[%emt 0:00:11]} 75. Kd4 {[%emt 0:00:21]} Rf6 {[%emt 0:00:09]} 76. Ke4 {[%emt 0:00:05]} Rf4+ {[%emt 0:00:10]} 77. Ke3 {[%emt 0:00:07]} Rf6 {[%emt 0:00:03]} 78. Ra7 {[%emt 0:00:43]} Ke5 {[%emt 0:01:14]} 79. Re7+ {[%emt 0:00:45]} Re6 {[%emt 0:00:15]} 80. Rd7 {[%emt 0:01:18]} Rd6 {[%emt 0:00:54]} 81. Rc7 {[%emt 0:00:27]} Rf6 {[%emt 0:01:13]} 82. Rc3 {[%emt 0:00:48]} Kd5 {[%emt 0:00:15]} 83. Kf2 {[%emt 0:00:48]} Kd4 {[%emt 0:00:15]} 84. Re3 {[%emt 0:00:19]} Kd5 {[%emt 0:00:01]} 85. Kg3 {[%emt 0:00:31]} Re6 {[%emt 0:01:15]} 86. Ra3 $1 {[%emt 0:00:32]} Rf6 {[%emt 0:00:21]} 87. Ra1 {[%emt 0:00:54]} Ke5 {[%emt 0:00:32]} 88. Re1+ {[%emt 0:00:31]} Kd6 {[%emt 0:00:10]} 89. Re8 {[%emt 0:00:28]} Rf4 {[%emt 0:00:40]} 90. Rh8 {[%emt 0:00:38]} Rf6 {[%emt 0:00:03]} 91. Rh7 {[%emt 0:00:06]} (91. f4 $5 gxf4+ 92. Kf3 $14) 91... Ke6 {[%emt 0:00:25]} 92. Ra7 {[%emt 0:01:52]} (92. f4 $5 gxf4+ 93. Kf3 $14) 92... Ke5 {[%emt 0:00:32]} 93. f4+ {[%emt 0:01:22]} Rxf4 {[%emt 0:01:35]} 94. Ra5+ {[%emt 0:00:04]} Kf6 {[%emt 0:00:18]} 95. Ra7 $1 {[%emt 0:01:10]} Ke5 {[%emt 0:00:39]} 96. Re7+ {[%emt 0:00:03]} Kd6 {[%emt 0:00:13]} 97. Rh7 {[%emt 0:00:07]} Rf6 {[%emt 0:00:10]} 1/2-1/2

[Event "58th Akiba Rubinstein A 2022"]
[Site "Polanica-Zdroj"]
[Date "2022.08.21"]
[Round "9.2"]
[White "Kolodziejski, Piotr"]
[Black "Cyborowski, Lukasz"]
[Result "0-1"]
[ECO "B85"]
[WhiteElo "2107"]
[BlackElo "2483"]
[Annotator "TA"]
[PlyCount "94"]
[EventDate "2022.08.13"]
[EventCountry "POL"]
[SourceTitle "playchess.com"]
[Source "ChessBase"]
[SourceQuality "1"]
[TimeControl "40/5400+30:1800+30"]

{[%evp 19,94,-15,-12,-27,-21,-36,-27,-31,-27,-35,-23,-32,-40,-53,-52,-56,-49,-35,-43,-58,-56,-53,-56,-67,-66,-104,-102,-107,-87,-75,-75,-143,-142,-145,-145,-145,-151,-244,-150,-254,-261,-810,-812,-816,-810,-804,-798,-783,-764,-729,-435,-433,-430,-425,-425,-374,-314,-410,-402,-525,-503,-586,-581,-507,-501,-635,-626,-1888,-1706,-29980,-29981,-29982,-29983,-29983,-29984,-29981,-29982]} 1. e4 {[%emt 0:00:01]} c5 {[%emt 0:00:10]} 2. Nf3 {[%emt 0:00:08]} d6 {[%emt 0:00:49]} 3. d4 {[%emt 0:00:05]} cxd4 {[%emt 0:00:09]} 4. Nxd4 {[%emt 0:00:05]} Nf6 {[%emt 0:00:10]} 5. Nc3 {[%emt 0:00:06]} e6 {[%emt 0:00:25]} 6. Be2 {[%emt 0:05:36]} a6 {[%emt 0:01:13]} 7. O-O {[%emt 0:00:15]} Qc7 {[%emt 0:00:58]} 8. Be3 {[%emt 0:00:21]} b5 {[%emt 0:00:58]} 9. a3 {[%emt 0:05:23]} Bb7 {[%emt 0:02:39]} 10. Bd3 {[%emt 0:05:11]} Nbd7 {[%emt 0:00:41]} 11. Kh1 {[%emt 0:06:55] B84: Sicilian Scheveningen: 6 Be2 a6, lines without early Be3.} Be7 {[%emt 0:02:18]} 12. Nb3 {[%emt 0:03:39]} O-O {[%emt 0:04:35]} 13. f4 {[%emt 0:03:08] Black has an edge.} Rac8 {[%emt 0:01:52]} 14. Qe1 {[%emt 0:07:27] [#]} e5 $146 {[%emt 0:31:05]} ({Predecessor:} 14... Rfe8 15. Qg3 Qb8 16. e5 dxe5 17. fxe5 Qxe5 18. Bf4 Qh5 19. Rae1 Nd5 20. Nxd5 Bxd5 {0-1 (36) Lederle,V (2191)-Mainka,R (2483) Bad Wiessee 2010}) 15. Rd1 {[%emt 0:15:24]} Rfe8 {[%emt 0:01:59]} 16. Qg3 {[%emt 0:13:03]} Nh5 {[%emt 0:07:08]} 17. Qh3 {[%emt 0:00:11]} Nxf4 {[%emt 0:00:11]} 18. Bxf4 {[%emt 0:00:13]} exf4 {[%emt 0:00:04]} 19. Nd5 {[%emt 0:06:40]} Bxd5 {[%emt 0:02:11]} 20. exd5 {[%emt 0:00:05]} g6 {[%emt 0:03:50]} 21. Rxf4 {[%emt 0:00:04]} Ne5 {[%emt 0:00:15]} 22. Rdf1 {[%emt 0:01:43]} Bg5 {[%emt 0:01:19]} 23. R4f2 {[%emt 0:03:12]} Qb6 {[%emt 0:06:45] Inhibits Nd4.} 24. Re2 {[%emt 0:08:09] Against Qe3} Qb7 {[%emt 0:00:33]} 25. Qg3 {[%emt 0:04:20]} ({White should play} 25. Rfe1) 25... Nxd3 $17 {[%emt 0:07:27]} 26. Rxe8+ {[%emt 0:00:51]} Rxe8 {[%emt 0:00:05]} 27. Qxd3 {[%emt 0:01:21]} Re3 {[%emt 0:03:26]} 28. Qd4 {[%emt 0:01:09]} (28. Qd1 $17 {is the only way for White.}) 28... Re5 {[%emt 0:00:07][%cal Og5f6]} 29. Rd1 {[%emt 0:01:33]} (29. Qd1 $17) 29... Qe7 $19 {[%emt 0:00:06]} 30. g3 $2 {[%emt 0:03:55]} (30. Nd2) 30... Qf6 {[%emt 0:02:31] [#] ( -> ...Qf3+)} 31. Qd3 {[%emt 0:02:01] Prevents Qf3+.} Re3 {[%emt 0:00:08]} 32. Qf1 {[%emt 0:01:09]} Rf3 {[%emt 0:01:18]} 33. Qe2 {[%emt 0:00:22]} Rf2 {[%emt 0:00:48]} 34. Qd3 {[%emt 0:00:36]} Qxb2 {[%emt 0:01:33]} 35. Nd4 {[%emt 0:00:05]} Bf6 {[%emt 0:00:18]} 36. Ne2 {[%emt 0:01:10]} Qe5 {[%emt 0:00:47]} 37. Nf4 {[%emt 0:00:48] Inhibits Qh5.} Qc3 {[%emt 0:01:20]} 38. Rc1 {[%emt 0:02:01]} Rf3 {[%emt 0:01:48]} 39. Qe2 {[%emt 0:01:00]} Bg5 {[%emt 0:07:07]} 40. Rf1 {[%emt 0:00:00]} Rxf1+ {[%emt 0:00:00]} 41. Qxf1 {[%emt 0:00:35]} Qxc2 {[%emt 0:01:07] aiming for ...Bxf4.} 42. Qf3 {[%emt 0:01:01]} Bxf4 {[%emt 0:03:00]} 43. gxf4 {[%emt 0:01:14] KQ-KQ} a5 {[%emt 0:00:06][%cal Ba6a5,Ba5b4,Bb4b3][%mdl 32] [#] Hoping for ...b4.} 44. h4 {[%emt 0:00:52]} b4 {[%emt 0:00:20] Black mates.} 45. axb4 {[%emt 0:00:05]} axb4 {[%emt 0:00:05]} 46. Qe3 {[%emt 0:01:02]} b3 {[%emt 0:01:25]} 47. Qe8+ {[%emt 0:00:06]} Kg7 {[%emt 0:00:04] Weighted Error Value: White=0.56/Black=0.12 (very precise)} 0-1

[Event "58th Akiba Rubinstein A 2022"]
[Site "Polanica-Zdroj"]
[Date "2022.08.21"]
[Round "9.3"]
[White "Siekanska, Maria"]
[Black "Razin, Vadim"]
[Result "1-0"]
[ECO "D08"]
[WhiteElo "1964"]
[BlackElo "2428"]
[Annotator "ChessBase"]
[PlyCount "147"]
[EventDate "2022.08.13"]
[EventCountry "POL"]
[SourceTitle "playchess.com"]
[Source "ChessBase"]
[SourceQuality "1"]
[TimeControl "40/5400+30:1800+30"]

1. d4 {[%emt 0:00:02]} d5 {[%emt 0:00:04]} 2. c4 {[%emt 0:00:05]} Nc6 {[%emt 0:00:33]} 3. Nf3 {[%emt 0:00:13]} e5 {[%emt 0:00:05]} 4. dxe5 {[%emt 0:00:47]} d4 {[%emt 0:00:04]} 5. Nbd2 {[%emt 0:00:47]} Nge7 {[%emt 0:01:02]} 6. Nb3 {[%emt 0:00:15]} Ng6 {[%emt 0:01:16]} 7. Nbxd4 {[%emt 0:08:34]} Ncxe5 {[%emt 0:00:24]} 8. Nxe5 {[%emt 0:00:43]} Nxe5 {[%emt 0:00:09]} 9. e3 {[%emt 0:00:40]} Bg4 {[%emt 0:16:35]} 10. Be2 {[%emt 0:14:56]} Bb4+ {[%emt 0:10:09]} 11. Kf1 {[%emt 0:07:15]} Bxe2+ {[%emt 0:05:38]} 12. Kxe2 {[%emt 0:05:48]} O-O {[%emt 0:03:41]} 13. Nf3 {[%emt 0:00:30]} Qf6 {[%emt 0:06:18]} 14. Nxe5 {[%emt 0:00:27]} Qxe5 {[%emt 0:00:06]} 15. Qd5 {[%emt 0:00:19]} Qf6 {[%emt 0:00:59]} 16. Qxb7 {[%emt 0:02:38]} Rab8 {[%emt 0:02:29]} 17. Qe4 {[%emt 0:09:45]} Rfe8 {[%emt 0:01:29]} 18. Qc2 {[%emt 0:01:00]} Qc6 {[%emt 0:14:44]} 19. Rg1 {[%emt 0:12:23]} Re6 {[%emt 0:09:48]} 20. a3 {[%emt 0:04:49]} Bd6 {[%emt 0:00:48]} 21. f3 {[%emt 0:04:30]} Rbe8 {[%emt 0:07:41]} 22. Bd2 {[%emt 0:03:34]} Bf4 {[%emt 0:08:55]} 23. Rge1 {[%emt 0:06:33]} Qc5 {[%emt 0:03:26]} 24. b4 {[%emt 0:04:43]} Qh5 {[%emt 0:02:24]} 25. h3 {[%emt 0:01:28]} Qg5 {[%emt 0:02:33]} 26. Kf1 {[%emt 0:00:57]} Rg6 {[%emt 0:00:52]} 27. Bc1 {[%emt 0:01:01]} Qg3 {[%emt 0:01:04]} 28. Rd1 {[%emt 0:03:18]} Be5 {[%emt 0:00:35]} 29. Rb1 {[%emt 0:00:46]} Qh4 {[%emt 0:00:34]} 30. Qe4 {[%emt 0:00:50]} Qh5 {[%emt 0:00:31]} 31. Rd5 {[%emt 0:01:20]} Rge6 {[%emt 0:00:20]} 32. Qg4 {[%emt 0:01:19]} Qh6 {[%emt 0:00:28]} 33. e4 {[%emt 0:00:13]} Qf6 {[%emt 0:00:24]} 34. Qg5 {[%emt 0:00:34]} Qxg5 {[%emt 0:00:44]} 35. Bxg5 {[%emt 0:00:02]} g6 {[%emt 0:00:30]} 36. Rbd1 {[%emt 0:00:25]} Ra6 {[%emt 0:00:30]} 37. Bh6 {[%emt 0:00:32]} Bf6 {[%emt 0:00:30]} 38. e5 {[%emt 0:00:44]} Be7 {[%emt 0:00:06]} 39. Rd7 {[%emt 0:00:18]} Re6 {[%emt 0:00:26]} 40. f4 {[%emt 0:00:00]} a5 {[%emt 0:00:00]} 41. bxa5 {[%emt 0:02:46]} g5 {[%emt 0:01:03]} 42. Bxg5 {[%emt 0:02:40]} Bxg5 {[%emt 0:01:59]} 43. fxg5 {[%emt 0:00:07]} Rxe5 {[%emt 0:00:16]} 44. Rd8 {[%emt 0:01:08]} Rxd8 {[%emt 0:00:10]} 45. Rxd8+ {[%emt 0:00:02]} Kg7 {[%emt 0:00:03]} 46. Rd5 {[%emt 0:00:36]} Re3 {[%emt 0:00:05]} 47. Rc5 {[%emt 0:00:15]} Rxa3 {[%emt 0:00:06]} 48. Kf2 {[%emt 0:01:59]} Kf8 {[%emt 0:00:20]} 49. h4 {[%emt 0:01:46]} Ke8 {[%emt 0:00:37]} 50. Rxc7 {[%emt 0:01:32]} Rxa5 {[%emt 0:00:06]} 51. g4 {[%emt 0:01:35]} Kf8 {[%emt 0:00:22]} 52. Ke3 {[%emt 0:00:48]} Kg7 {[%emt 0:01:36]} 53. c5 {[%emt 0:00:47]} Ra1 {[%emt 0:02:04]} 54. c6 {[%emt 0:01:33]} Rc1 {[%emt 0:04:32]} 55. Rc8 {[%emt 0:01:10]} h6 {[%emt 0:03:12]} 56. gxh6+ {[%emt 0:00:32]} Kxh6 {[%emt 0:00:01]} 57. Kd4 {[%emt 0:01:24]} Kg7 {[%emt 0:00:14]} 58. Ke5 {[%emt 0:01:31]} Rg1 {[%emt 0:01:17]} 59. Ra8 {[%emt 0:01:48]} Rc1 {[%emt 0:00:06]} 60. Kd6 {[%emt 0:00:36]} Rd1+ {[%emt 0:00:13]} 61. Ke7 {[%emt 0:00:30]} Rc1 {[%emt 0:00:13]} 62. Kd7 {[%emt 0:00:18]} Rd1+ {[%emt 0:00:03]} 63. Kc8 {[%emt 0:00:21]} Kf6 {[%emt 0:00:53]} 64. c7 {[%emt 0:00:22]} Ke7 {[%emt 0:00:05]} 65. Ra2 {[%emt 0:00:37]} Rb1 {[%emt 0:00:08]} 66. Re2+ {[%emt 0:00:10]} Kf8 {[%emt 0:00:04]} 67. Re4 {[%emt 0:00:14]} Rb2 {[%emt 0:00:15]} 68. Kd7 {[%emt 0:00:54]} Rd2+ {[%emt 0:00:02]} 69. Kc6 {[%emt 0:00:08]} Rc2+ {[%emt 0:00:01]} 70. Kb6 {[%emt 0:00:12]} f6 {[%emt 0:00:10]} 71. h5 {[%emt 0:00:23]} Kf7 {[%emt 0:00:07]} 72. h6 {[%emt 0:00:17]} f5 {[%emt 0:00:06]} 73. gxf5 {[%emt 0:00:18]} Rc1 {[%emt 0:00:03]} 74. h7 {[%emt 0:00:12]} 1-0

[Event "58th Akiba Rubinstein A 2022"]
[Site "Polanica-Zdroj"]
[Date "2022.08.21"]
[Round "9.4"]
[White "Lambrecht, Tomasz"]
[Black "Kowalczyk, Rafal"]
[Result "1/2-1/2"]
[ECO "E01"]
[WhiteElo "1956"]
[BlackElo "2239"]
[Annotator "TA"]
[PlyCount "123"]
[EventDate "2022.08.13"]
[EventCountry "POL"]
[SourceTitle "playchess.com"]
[Source "ChessBase"]
[SourceQuality "1"]
[TimeControl "40/5400+30:1800+30"]

{[%evp 10,123,9,17,7,0,0,0,0,-10,0,0,0,0,18,3,33,9,17,27,17,-49,77,85,184,186,185,0,0,10,16,12,6,0,12,0,4,-8,-15,-13,-13,-15,-14,-27,-29,-29,4,0,1,0,15,0,0,0,8,8,8,0,0,0,0,0,0,-14,0,0,5,5,8,0,0,0,0,0,15,-63,0,0,18,-63,0,0,242,16,16,16,16,16,64,64,64,64,422,430,747,658,753,0,642,249,237,118,118,118,118,112,87,87,151,118,118,118,118,118,118,0]} 1. d4 {[%emt 0:00:24]} Nf6 {[%emt 0:00:08]} 2. c4 {[%emt 0:00:22]} e6 {[%emt 0:00:09]} 3. g3 {[%emt 0:00:09]} d5 {[%emt 0:08:23]} 4. Bg2 {[%emt 0:00:09]} Bb4+ {[%emt 0:01:42]} 5. Nd2 {[%emt 0:00:10]} O-O {[%emt 0:00:34]} 6. Ngf3 {[%emt 0:00:33]} b6 {[%emt 0:12:32] E01: Catalan: Early deviations.} 7. cxd5 {[%emt 0:01:48]} exd5 {[%emt 0:00:09]} ({But not} 7... Qxd5 8. O-O c6 9. Qa4 $14) 8. O-O {[%emt 0:00:19]} Re8 {[%emt 0:03:02] The position is equal.} 9. a3 {[%emt 0:05:57]} Bd6 {[%emt 0:00:26] [#]} 10. Nb1 $146 {[%emt 0:03:57]} ({Predecessor:} 10. b3 Ba6 11. Re1 Nbd7 12. Bb2 Qe7 13. e3 Ne4 14. Qc2 Bb7 15. Rec1 Nxf2 16. Nf1 {½-½ (77) Moskalenko,A (2522)-Lushenkov,M (2434) Chess.com INT 2017}) 10... h6 {[%emt 0:05:06]} 11. Nc3 {[%emt 0:01:13]} c6 {[%emt 0:01:14]} 12. Qc2 {[%emt 0:04:35]} Qe7 {[%emt 0:16:50]} 13. Nd2 {[%emt 0:19:01]} Ba6 {[%emt 0:11:15]} 14. Re1 {[%emt 0:00:09]} Nbd7 {[%emt 0:00:26]} 15. e4 {[%emt 0:06:26]} (15. b4 $11) 15... Nxe4 {[%emt 0:01:17]} (15... c5 $1 $15 {stays ahead.} 16. Nb3 (16. e5 cxd4 17. Nxd5 Nxd5 $15) 16... Rac8) 16. Ncxe4 $16 {[%emt 0:03:04]} f5 {[%emt 0:09:19] [#]} (16... dxe4 $16 17. Nxe4 (17. Rxe4 Qf8 $14) 17... Bb7) 17. Qxc6 $1 $18 {[%emt 0:01:00]} dxe4 {[%emt 0:00:32] [#]} 18. Nc4 $2 {[%emt 0:01:13]} (18. Nxe4 $1 $18 {[%mdl 512] aiming for Qd5+.} Bd3 (18... fxe4 19. Rxe4) 19. Qd5+ Kh8 20. Qxf5) 18... Bxc4 {[%emt 0:03:43]} 19. Qxc4+ {[%emt 0:00:06]} Qf7 {[%emt 0:06:46]} 20. Qxf7+ {[%emt 0:04:35]} Kxf7 {[%emt 0:00:02]} 21. Bd2 {[%emt 0:01:44]} Rac8 {[%emt 0:02:20]} 22. Rac1 {[%emt 0:10:25]} Nf6 {[%emt 0:00:10]} 23. Rxc8 {[%emt 0:12:48]} Rxc8 {[%emt 0:00:19]} 24. Rc1 {[%emt 0:00:01] Against Rc2} Rxc1+ {[%emt 0:02:06]} 25. Bxc1 $11 {[%emt 0:00:01][%mdl 4096] Endgame KBB-KBN} Ke6 {[%emt 0:00:09]} 26. Bf1 {[%emt 0:05:29]} Kd5 {[%emt 0:00:16]} 27. b3 {[%emt 0:01:38]} g5 {[%emt 0:09:02]} (27... Kxd4 $5 {[%cal Rd4c3]} 28. Bb2+ Kd5 $15) 28. Bc4+ {[%emt 0:02:13]} Kc6 {[%emt 0:00:02]} 29. a4 {[%emt 0:00:22]} f4 {[%emt 0:03:34]} 30. Bb5+ {[%emt 0:05:19]} Kc7 {[%emt 0:00:44]} 31. Bb2 {[%emt 0:00:48]} h5 {[%emt 0:01:56]} 32. Bc4 {[%emt 0:02:30]} h4 {[%emt 0:01:44]} 33. gxh4 {[%emt 0:01:19]} gxh4 {[%emt 0:00:02]} 34. h3 {[%emt 0:02:13]} Kd7 {[%emt 0:00:47]} 35. Bc3 {[%emt 0:02:11]} a5 {[%emt 0:00:40]} 36. f3 {[%emt 0:01:10]} e3 {[%emt 0:00:32]} ({Don't play} 36... exf3 37. Be1 $14) 37. Be1 {[%emt 0:00:21]} Bb4 {[%emt 0:00:31]} 38. Bxh4 {[%emt 0:00:58]} Nh5 {[%emt 0:00:08]} 39. Kg2 {[%emt 0:01:59]} Bc3 {[%emt 0:00:34]} 40. Bf7 {[%emt 0:00:00]} Ng7 41. Bc4 $1 {[%emt 0:19:13]} Nf5 {[%emt 0:16:11]} 42. Bf6 {[%emt 0:07:20]} (42. Bg5 $11) 42... Ng3 {[%emt 0:03:11]} (42... Bxd4 $15 43. Bd3 Bxf6 44. Bxf5+ Kc6) 43. Bh4 {[%emt 0:00:21]} Nf5 {[%emt 0:00:12]} 44. Bf6 {[%emt 0:00:32]} (44. Bg5 $11) 44... Bb4 {[%emt 0:09:14]} ({Black should try} 44... Bxd4 $15 45. Bd3 Bxf6 46. Bxf5+ Kc6) 45. d5 {[%emt 0:04:59]} Kd6 $2 {[%emt 0:01:27]} (45... Be7 $11 {and Black has nothing to worry.} 46. Be5 Bd6) 46. Bd3 $2 {[%emt 0:00:26]} (46. h4 $18) 46... Ng3 {[%emt 0:00:37] ...e2 is the strong threat.} 47. Bh4 {[%emt 0:00:47]} Nh5 {[%emt 0:00:49]} 48. Bg6 {[%emt 0:01:41]} Ng7 {[%emt 0:00:11]} (48... Kxd5 $11 49. Bxh5 e2) 49. Kf1 $14 {[%emt 0:00:24]} Kxd5 {[%emt 0:00:57]} 50. Bf6 {[%emt 0:00:33]} Ne6 {[%emt 0:02:39][%mdl 8192]} (50... Bf8 $1 $14) 51. Bf7 $18 {[%emt 0:00:01] Threatens to win with Bg5. A strong pair of Bishops.} Bd6 {[%emt 0:00:25]} (51... Kd6 $142 52. Bxe6 Kxe6) 52. Bd8 {[%emt 0:00:50]} Bc5 {[%emt 0:00:32]} 53. Bc7 $2 {[%emt 0:00:05]} ({White should play} 53. h4 $18 Ke5 54. Bxe6 Kxe6 55. h5) 53... Bd6 $2 {[%emt 0:00:52][%mdl 8192]} (53... Kc6 $11 54. Be5 Bd4) 54. Bxb6 $2 {[%emt 0:00:50]} (54. Bxe6+ Kxe6 55. Bxb6) 54... Kc6 {[%emt 0:00:13] White must now prevent ...Ng5.} 55. Bxe3 {[%emt 0:00:47]} ({Weaker is} 55. Bxe6 Kxb6 56. h4 Kc5 $11) (55. Bxa5 $18 {and the rest is easy.} Nd4 56. Bc3 Nxf3 57. Bh5 Nd2+ 58. Bxd2 (58. Ke2 Nxb3 59. h4 Kc5 $14) 58... exd2 59. Ke2) 55... fxe3 $16 {[%emt 0:00:47]} 56. Bxe6 $18 {[%emt 0:00:07] KB-KB} Kc5 {[%emt 0:00:27]} 57. Ke2 {[%emt 0:00:14]} Kd4 {[%emt 0:00:02]} 58. h4 {[%emt 0:00:21][%cal Bh3h4,Bh4h5][%mdl 32]} Bf4 {[%emt 0:00:14]} (58... Ke5 $142) 59. h5 {[%emt 0:00:08]} Kc3 {[%emt 0:00:24] White is better.} 60. Bc4 {[%emt 0:00:22]} Bh6 {[%emt 0:00:33] [#]} 61. Bb5 $1 {[%emt 0:01:00]} Bf4 {[%emt 0:01:16] [#]} 62. Bc4 {[%emt 0:00:50] Weighted Error Value: White=0.43/Black=0.40} (62. b4 $1 $16 {[%cal Rb4a5]} Kxb4 63. Kd3) 1/2-1/2